[Event "Romanian Championship Open 2025"]
[Site "Craiova"]
[Date "2025.02.18"]
[Round "4.6"]
[White "Magold, Filip"]
[Black "Nastase, Robert-Paul"]
[Result "1-0"]
[Annotator "ChessBase"]
[ECO "A04"]
[WhiteElo "2431"]
[BlackElo "2259"]
[PlyCount "97"]
[EventDate "2025.02.12"]
[EventType "swiss"]
[EventCountry "ROU"]
[SourceTitle "playchess.com"]
[Source "ChessBase"]
[SourceQuality "1"]
[TimeControl "40/5400+30:900+30"]

1. Nf3 {[%emt 0:00:29]} f5 {[%emt 0:00:10]} 2. d3 {[%emt 0:00:06]} d6 {[%emt 0:00:05]} 3. e4 {[%emt 0:00:08]} e5 {[%emt 0:00:11]} 4. Nc3 {[%emt 0:00:10]} Nf6 {[%emt 0:00:22]} 5. g3 {[%emt 0:02:14]} c5 {[%emt 0:00:05]} 6. Bh3 {[%emt 0:01:16]} Nc6 {[%emt 0:07:35]} 7. Bg5 {[%emt 0:07:34]} h6 {[%emt 0:14:41]} 8. Bxf6 {[%emt 0:01:45]} Qxf6 {[%emt 0:00:04]} 9. exf5 {[%emt 0:09:08]} Bxf5 {[%emt 0:03:55]} 10. Nd5 {[%emt 0:00:30]} Qf7 {[%emt 0:00:04]} 11. Bxf5 {[%emt 0:00:06]} Qxd5 {[%emt 0:00:11]} 12. Bg6+ {[%emt 0:12:26]} Kd8 {[%emt 0:00:12]} 13. c4 {[%emt 0:00:05]} Qe6 {[%emt 0:01:38]} 14. Be4 {[%emt 0:00:07]} g5 {[%emt 0:05:44]} 15. h3 {[%emt 0:05:39]} Be7 {[%emt 0:00:23]} 16. a3 {[%emt 0:01:09]} a5 {[%emt 0:05:12]} 17. Kf1 {[%emt 0:05:00]} Kc7 {[%emt 0:03:48]} 18. Kg2 {[%emt 0:00:54]} h5 {[%emt 0:00:07]} 19. h4 {[%emt 0:06:07]} g4 {[%emt 0:00:19]} 20. Nd2 {[%emt 0:02:56]} Nd4 {[%emt 0:11:51]} 21. Rb1 {[%emt 0:05:10]} a4 {[%emt 0:01:50]} 22. b4 {[%emt 0:00:19]} axb3 {[%emt 0:00:06]} 23. Nxb3 {[%emt 0:00:04]} Nc6 {[%emt 0:00:04]} 24. Qc1 {[%emt 0:00:18]} Ra7 {[%emt 0:00:30]} 25. Qb2 {[%emt 0:00:26]} Kd7 {[%emt 0:00:23]} 26. Nd2 {[%emt 0:00:49]} Bd8 {[%emt 0:00:11]} 27. Nf1 {[%emt 0:00:11]} Rf8 {[%emt 0:01:00]} 28. Ne3 {[%emt 0:00:25]} Rf3 {[%emt 0:07:12]} 29. Rhf1 {[%emt 0:08:00]} Qf6 {[%emt 0:05:44]} 30. Nd5 {[%emt 0:03:23]} Qf8 {[%emt 0:00:38]} 31. Ne3 {[%emt 0:06:21]} Ke6 {[%emt 0:00:59]} 32. Bd5+ {[%emt 0:01:05]} Kd7 {[%emt 0:01:13]} 33. Qb5 {[%emt 0:01:25]} Ba5 {[%emt 0:03:10]} 34. Rb2 {[%emt 0:06:16]} Qa8 {[%emt 0:04:23]} 35. Rfb1 {[%emt 0:01:53]} Bc7 {[%emt 0:00:44]} 36. Be4 {[%emt 0:01:34]} Ke6 {[%emt 0:00:33]} 37. Nd5 {[%emt 0:01:21]} Bd8 {[%emt 0:02:26]} 38. Bg6 {[%emt 0:00:24]} Rf5 {[%emt 0:04:19]} 39. Ne3 {[%emt 0:00:48]} Rf8 {[%emt 0:02:52]} 40. Bxh5 {[%emt 0:00:00]} Rg8 {[%emt 0:00:00]} 41. Nd5 {[%emt 0:01:44]} b6 {[%emt 0:00:43]} 42. f3 {[%emt 0:07:32]} gxf3+ {[%emt 0:06:42]} 43. Bxf3 {[%emt 0:01:51]} Rag7 {[%emt 0:06:17]} 44. Nxb6 {[%emt 0:03:13]} Rxg3+ {[%emt 0:05:43]} 45. Kh1 {[%emt 0:00:04]} Bxb6 {[%emt 0:07:46]} 46. Bd5+ {[%emt 0:01:35]} Ke7 {[%emt 0:02:09]} 47. Qxb6 {[%emt 0:00:29]} Rh3+ {[%emt 0:01:38]} 48. Rh2 {[%emt 0:00:02]} Qc8 {[%emt 0:00:38]} 49. Qb7+ {[%emt 0:00:15]} 1-0

[Event "Romanian Championship Open 2025"]
[Site "Craiova"]
[Date "2025.02.18"]
[Round "4.7"]
[White "Ilinca, Felix-Antonio"]
[Black "Danila, Tudor-Gabriel"]
[Result "1-0"]
[Annotator "ChessBase"]
[ECO "B12"]
[WhiteElo "2412"]
[BlackElo "2136"]
[PlyCount "89"]
[EventDate "2025.02.12"]
[EventType "swiss"]
[EventCountry "ROU"]
[SourceTitle "playchess.com"]
[Source "ChessBase"]
[SourceQuality "1"]
[TimeControl "40/5400+30:900+30"]

1. e4 {[%emt 0:00:08]} c6 {[%emt 0:00:03]} 2. d4 {[%emt 0:00:23]} d5 {[%emt 0:00:03]} 3. e5 {[%emt 0:00:37]} c5 {[%emt 0:00:03]} 4. Nf3 {[%emt 0:00:43]} cxd4 {[%emt 0:00:04]} 5. Nxd4 {[%emt 0:00:27]} Nc6 {[%emt 0:00:04]} 6. Bb5 {[%emt 0:00:43]} Bd7 {[%emt 0:04:03]} 7. Nxc6 {[%emt 0:00:48]} bxc6 {[%emt 0:00:06]} 8. Bd3 {[%emt 0:00:33]} e6 {[%emt 0:04:33]} 9. O-O {[%emt 0:02:00]} Qc7 {[%emt 0:12:53]} 10. Re1 {[%emt 0:03:23]} Rb8 {[%emt 0:01:13]} 11. Nd2 {[%emt 0:02:54]} Ne7 {[%emt 0:09:44]} 12. Nf3 {[%emt 0:07:31]} Ng6 {[%emt 0:06:48]} 13. h4 {[%emt 0:02:40]} f6 {[%emt 0:10:48]} 14. Bxg6+ {[%emt 0:04:09]} hxg6 {[%emt 0:00:03]} 15. Qd3 {[%emt 0:00:48]} Kf7 {[%emt 0:00:04]} 16. Bf4 {[%emt 0:01:14]} Rb4 {[%emt 0:05:09]} 17. Bg3 {[%emt 0:03:55]} Qb6 {[%emt 0:00:28]} 18. b3 {[%emt 0:01:28]} Rg4 {[%emt 0:04:02]} 19. Nh2 {[%emt 0:11:59]} Rd4 {[%emt 0:00:36]} 20. Qf3 {[%emt 0:03:40]} Be7 {[%emt 0:03:06]} 21. exf6 {[%emt 0:07:10]} gxf6 {[%emt 0:00:37]} 22. Ng4 {[%emt 0:01:11]} Kg7 {[%emt 0:07:02]} 23. c3 {[%emt 0:02:29]} Rd2 {[%emt 0:02:08]} 24. Bf4 {[%emt 0:04:37]} Rc2 {[%emt 0:01:44]} 25. Qd3 {[%emt 0:07:45]} Rxh4 {[%emt 0:00:55]} 26. Be3 {[%emt 0:01:40]} Qb8 {[%emt 0:05:03]} 27. Qxc2 {[%emt 0:04:47]} Rxg4 {[%emt 0:00:05]} 28. Rad1 {[%emt 0:02:53]} Bd6 {[%emt 0:06:27]} 29. Rd4 {[%emt 0:04:34]} e5 {[%emt 0:01:15]} 30. Rxg4 {[%emt 0:00:17]} Bxg4 {[%emt 0:00:02]} 31. f3 {[%emt 0:02:18]} Bf5 {[%emt 0:00:47]} 32. Qf2 {[%emt 0:01:00]} a6 {[%emt 0:02:19]} 33. g4 {[%emt 0:03:40]} Bd7 {[%emt 0:01:24]} 34. g5 {[%emt 0:02:14]} fxg5 {[%emt 0:05:42]} 35. Bxg5 {[%emt 0:00:05]} Qh8 {[%emt 0:01:05]} 36. f4 {[%emt 0:02:42]} Qh5 {[%emt 0:00:32]} 37. Bf6+ {[%emt 0:00:26]} Kf7 {[%emt 0:02:36]} 38. fxe5 {[%emt 0:01:47]} Qg4+ {[%emt 0:00:03]} 39. Kf1 {[%emt 0:00:13]} Bf5 {[%emt 0:00:12]} 40. Qa7+ {[%emt 0:00:00]} Bd7 {[%emt 0:00:00]} 41. exd6 {[%emt 0:06:59]} Qh3+ {[%emt 0:22:09]} 42. Ke2 {[%emt 0:00:21]} Kxf6 {[%emt 0:00:00]} 43. Qd4+ {[%emt 0:00:46]} Ke6 {[%emt 0:00:00]} 44. Kd2+ {[%emt 0:00:06]} Kxd6 {[%emt 0:00:00]} 45. Qf4+ {[%emt 0:00:04]} 1-0

[Event "Romanian Championship Open 2025"]
[Site "Craiova"]
[Date "2025.02.18"]
[Round "4.8"]
[White "Filip, Lucian-Ioan"]
[Black "Bida, Mihai-Eugen"]
[Result "1/2-1/2"]
[Annotator "ChessBase"]
[ECO "D37"]
[WhiteElo "2328"]
[BlackElo "2413"]
[PlyCount "23"]
[EventDate "2025.02.12"]
[EventType "swiss"]
[EventCountry "ROU"]
[SourceTitle "playchess.com"]
[Source "ChessBase"]
[SourceQuality "1"]
[TimeControl "40/5400+30:900+30"]

1. d4 {[%emt 0:00:01]} Nf6 {[%emt 0:00:09]} 2. c4 {[%emt 0:00:03]} e6 {[%emt 0:00:03]} 3. Nf3 {[%emt 0:00:03]} a6 {[%emt 0:00:06]} 4. Nc3 {[%emt 0:12:37]} d5 {[%emt 0:00:05]} 5. c5 {[%emt 0:06:55]} b6 {[%emt 0:04:28]} 6. cxb6 {[%emt 0:00:14]} cxb6 {[%emt 0:00:06]} 7. Bf4 {[%emt 0:01:53]} Bd6 {[%emt 0:02:33]} 8. Bxd6 {[%emt 0:12:19]} Qxd6 {[%emt 0:00:05]} 9. e3 {[%emt 0:00:05]} Nbd7 {[%emt 0:08:40]} 10. Bd3 {[%emt 0:04:47]} Bb7 {[%emt 0:00:14]} 11. O-O {[%emt 0:05:00]} O-O {[%emt 0:07:59]} 12. Rc1 {[%emt 0:04:37]} 1/2-1/2

[Event "Romanian Championship Open 2025"]
[Site "Craiova"]
[Date "2025.02.18"]
[Round "4.9"]
[White "Sprincean, Lukas George"]
[Black "Ghimpu, Samuel-Timotei"]
[Result "1/2-1/2"]
[Annotator "ChessBase"]
[ECO "B67"]
[WhiteElo "2134"]
[BlackElo "2456"]
[PlyCount "50"]
[EventDate "2025.02.12"]
[EventType "swiss"]
[EventCountry "ROU"]
[SourceTitle "playchess.com"]
[Source "ChessBase"]
[SourceQuality "1"]
[TimeControl "40/5400+30:900+30"]

1. e4 {[%emt 0:00:02]} c5 {[%emt 0:00:41]} 2. Nf3 {[%emt 0:00:04]} Nc6 {[%emt 0:00:15]} 3. d4 {[%emt 0:00:05]} cxd4 {[%emt 0:00:11]} 4. Nxd4 {[%emt 0:00:06]} Nf6 {[%emt 0:00:14]} 5. Nc3 {[%emt 0:00:04]} d6 {[%emt 0:00:18]} 6. Bg5 {[%emt 0:00:04]} e6 {[%emt 0:00:11]} 7. Qd2 {[%emt 0:00:05]} a6 {[%emt 0:00:09]} 8. O-O-O {[%emt 0:00:14]} Bd7 {[%emt 0:00:09]} 9. Kb1 {[%emt 0:00:34]} Be7 {[%emt 0:00:33]} 10. f3 {[%emt 0:00:42]} Nxd4 {[%emt 0:00:48]} 11. Qxd4 {[%emt 0:00:07]} Qc7 {[%emt 0:00:09]} 12. h4 {[%emt 0:14:43]} h6 {[%emt 0:05:27]} 13. Be3 {[%emt 0:02:03]} h5 {[%emt 0:00:11]} 14. Qd2 {[%emt 0:09:48]} b5 {[%emt 0:02:32]} 15. Ne2 {[%emt 0:05:14]} Rb8 {[%emt 0:04:29]} 16. Nd4 {[%emt 0:08:25]} a5 {[%emt 0:08:13]} 17. Bd3 {[%emt 0:07:30]} b4 {[%emt 0:02:26]} 18. Qe2 {[%emt 0:06:28]} g6 {[%emt 0:12:30]} 19. Nb5 {[%emt 0:10:07]} Qb7 {[%emt 0:20:05]} 20. e5 {[%emt 0:09:51]} dxe5 {[%emt 0:01:43]} 21. Bg5 {[%emt 0:02:11]} Nd5 {[%emt 0:17:56]} 22. Qxe5 {[%emt 0:02:32]} f6 {[%emt 0:00:00]} 23. Nd6+ {[%emt 0:03:13]} Bxd6 {[%emt 0:00:25]} 24. Qxd6 {[%emt 0:00:10]} fxg5 {[%emt 0:06:43]} 25. Bxg6+ {[%emt 0:18:38]} Kd8 {[%emt 0:16:42]} 1/2-1/2

[Event "Romanian Championship Open 2025"]
[Site "Craiova"]
[Date "2025.02.18"]
[Round "4.10"]
[White "Korcsek, Alexandru-David"]
[Black "Secheres, Adrian-Simion"]
[Result "1/2-1/2"]
[Annotator "ChessBase"]
[ECO "C55"]
[WhiteElo "2127"]
[BlackElo "2350"]
[PlyCount "62"]
[EventDate "2025.02.12"]
[EventType "swiss"]
[EventCountry "ROU"]
[SourceTitle "playchess.com"]
[Source "ChessBase"]
[SourceQuality "1"]
[TimeControl "40/5400+30:900+30"]

1. e4 {[%emt 0:00:05]} e5 {[%emt 0:00:32]} 2. Bc4 {[%emt 0:00:10]} Nf6 {[%emt 0:00:39]} 3. d3 {[%emt 0:00:08]} Nc6 {[%emt 0:02:09]} 4. Nc3 {[%emt 0:00:13]} Na5 {[%emt 0:01:05]} 5. Bb3 {[%emt 0:00:09]} c6 {[%emt 0:07:40]} 6. Nf3 {[%emt 0:08:58]} Nxb3 {[%emt 0:04:45]} 7. axb3 {[%emt 0:00:09]} d6 {[%emt 0:01:05]} 8. h3 {[%emt 0:00:49]} Be7 {[%emt 0:01:37]} 9. O-O {[%emt 0:01:36]} O-O {[%emt 0:03:13]} 10. Qe2 {[%emt 0:10:43]} Nd7 {[%emt 0:12:57]} 11. Rd1 {[%emt 0:03:51]} Re8 {[%emt 0:11:09]} 12. d4 {[%emt 0:04:24]} Bf8 {[%emt 0:05:57]} 13. Be3 {[%emt 0:11:36]} a6 {[%emt 0:03:44]} 14. Nd2 {[%emt 0:09:23]} exd4 {[%emt 0:05:33]} 15. Bxd4 {[%emt 0:00:17]} Qh4 {[%emt 0:03:32]} 16. Be3 {[%emt 0:05:22]} Ne5 {[%emt 0:06:08]} 17. Nf3 {[%emt 0:06:34]} Qf6 {[%emt 0:03:25]} 18. Nxe5 {[%emt 0:01:22]} dxe5 {[%emt 0:00:05]} 19. Na4 {[%emt 0:01:00]} Qg6 {[%emt 0:00:26]} 20. Qf3 {[%emt 0:00:50]} Be6 {[%emt 0:04:18]} 21. Nc5 {[%emt 0:01:49]} Bxc5 {[%emt 0:00:47]} 22. Bxc5 {[%emt 0:00:08]} f5 {[%emt 0:02:47]} 23. exf5 {[%emt 0:06:57]} Bxf5 {[%emt 0:00:06]} 24. Rd6 {[%emt 0:01:24]} Re6 {[%emt 0:02:24]} 25. Rxe6 {[%emt 0:01:01]} Bxe6 {[%emt 0:02:56]} 26. c4 {[%emt 0:04:39]} e4 {[%emt 0:00:39]} 27. Qe3 {[%emt 0:01:19]} Rd8 {[%emt 0:01:42]} 28. Re1 {[%emt 0:01:20]} Bf5 {[%emt 0:01:23]} 29. Kh1 {[%emt 0:03:58]} h5 {[%emt 0:01:40]} 30. Qf4 {[%emt 0:02:46]} Rd3 {[%emt 0:03:45]} 31. Re3 {[%emt 0:00:59]} Kh7 {[%emt 0:00:34]} 1/2-1/2

[Event "Romanian Championship Open 2025"]
[Site "Craiova"]
[Date "2025.02.18"]
[Round "4.11"]
[White "Sachilaru, Alexandru"]
[Black "Leu, Dragos Stefan"]
[Result "1-0"]
[Annotator "ChessBase"]
[ECO "B95"]
[WhiteElo "2305"]
[BlackElo "2180"]
[PlyCount "93"]
[EventDate "2025.02.12"]
[EventType "swiss"]
[EventCountry "ROU"]
[SourceTitle "playchess.com"]
[Source "ChessBase"]
[SourceQuality "1"]
[TimeControl "40/5400+30:900+30"]

1. e4 {[%emt 0:00:07]} c5 {[%emt 0:00:04]} 2. Nf3 {[%emt 0:00:09]} d6 {[%emt 0:00:03]} 3. d4 {[%emt 0:00:13]} cxd4 {[%emt 0:00:01]} 4. Nxd4 {[%emt 0:00:07]} Nf6 {[%emt 0:00:03]} 5. Nc3 {[%emt 0:00:09]} a6 {[%emt 0:00:03]} 6. Bg5 {[%emt 0:00:39]} e6 {[%emt 0:00:23]} 7. Qd2 {[%emt 0:00:38]} Be7 {[%emt 0:03:42]} 8. O-O-O {[%emt 0:01:06]} Qc7 {[%emt 0:06:59]} 9. f3 {[%emt 0:01:06]} Nbd7 {[%emt 0:00:38]} 10. h4 {[%emt 0:03:25]} b5 {[%emt 0:05:17]} 11. a3 {[%emt 0:01:17]} Bb7 {[%emt 0:01:14]} 12. Ndxb5 {[%emt 0:04:50]} axb5 {[%emt 0:00:13]} 13. Nxb5 {[%emt 0:00:09]} Qb8 {[%emt 0:04:58]} 14. Nxd6+ {[%emt 0:00:49]} Qxd6 {[%emt 0:01:15]} 15. Qxd6 {[%emt 0:00:05]} Bxd6 {[%emt 0:00:01]} 16. Rxd6 {[%emt 0:00:11]} Ke7 {[%emt 0:02:19]} 17. Rd2 {[%emt 0:02:37]} Ba6 {[%emt 0:04:03]} 18. Bxa6 {[%emt 0:02:41]} Rxa6 {[%emt 0:00:02]} 19. Rhd1 {[%emt 0:01:47]} Ra7 {[%emt 0:18:10]} 20. Rxd7+ {[%emt 0:17:47]} Rxd7 {[%emt 0:00:07]} 21. e5 {[%emt 0:00:09]} Rc7 {[%emt 0:23:12]} 22. b3 {[%emt 0:05:04]} Rc5 {[%emt 0:05:29]} 23. exf6+ {[%emt 0:00:53]} gxf6 {[%emt 0:00:01]} 24. Be3 {[%emt 0:00:39]} Re5 {[%emt 0:01:54]} 25. Bd4 {[%emt 0:02:48]} Re2 {[%emt 0:01:41]} 26. Bc5+ {[%emt 0:00:20]} Ke8 {[%emt 0:00:01]} 27. a4 {[%emt 0:02:24]} Rg8 {[%emt 0:02:34]} 28. g4 {[%emt 0:00:47]} f5 {[%emt 0:06:41]} 29. a5 {[%emt 0:20:14]} fxg4 {[%emt 0:04:01]} 30. a6 {[%emt 0:02:06]} f5 {[%emt 0:00:10]} 31. a7 {[%emt 0:01:47]} Kf7 {[%emt 0:00:05]} 32. Rd7+ {[%emt 0:03:24]} Kg6 {[%emt 0:01:45]} 33. Rb7 {[%emt 0:04:59]} Rc8 {[%emt 0:02:58]} 34. Rc7 {[%emt 0:05:43]} Ra8 {[%emt 0:01:04]} 35. fxg4 {[%emt 0:00:31]} Re5 {[%emt 0:04:05]} 36. gxf5+ {[%emt 0:00:57]} exf5 {[%emt 0:00:45]} 37. Bf2 {[%emt 0:02:33]} f4 {[%emt 0:00:36]} 38. Rb7 {[%emt 0:02:46]} Kf5 {[%emt 0:02:10]} 39. b4 {[%emt 0:00:20]} Ke4 {[%emt 0:00:41]} 40. b5 {[%emt 0:00:00]} Kf3 {[%emt 0:00:00]} 41. Rb8 {[%emt 0:01:04]} Rxa7 {[%emt 0:03:05]} 42. Bxa7 {[%emt 0:00:05]} Ke2 {[%emt 0:01:32]} 43. Bd4 {[%emt 0:01:00]} Rd5 {[%emt 0:00:13]} 44. b6 {[%emt 0:00:46]} Rb5 {[%emt 0:00:33]} 45. Re8+ {[%emt 0:00:27]} Kf3 {[%emt 0:00:11]} 46. Re5 {[%emt 0:00:17]} Rb4 {[%emt 0:00:16]} 47. c3 {[%emt 0:00:07]} 1-0

[Event "Romanian Championship Open 2025"]
[Site "Craiova"]
[Date "2025.02.18"]
[Round "4.12"]
[White "Serban, Cristian-Stefan"]
[Black "Ignat, Matei-Marius"]
[Result "1-0"]
[Annotator "ChessBase"]
[ECO "A30"]
[WhiteElo "2295"]
[BlackElo "2137"]
[PlyCount "131"]
[EventDate "2025.02.12"]
[EventType "swiss"]
[EventCountry "ROU"]
[SourceTitle "playchess.com"]
[Source "ChessBase"]
[SourceQuality "1"]
[TimeControl "40/5400+30:900+30"]

1. c4 {[%emt 0:00:08]} Nf6 {[%emt 0:00:44]} 2. Nf3 {[%emt 0:00:14]} e6 {[%emt 0:01:16]} 3. g3 {[%emt 0:00:18]} c5 {[%emt 0:04:50]} 4. Bg2 {[%emt 0:00:28]} Be7 {[%emt 0:00:05]} 5. Nc3 {[%emt 0:02:21]} O-O {[%emt 0:01:44]} 6. O-O {[%emt 0:01:41]} a6 {[%emt 0:04:08]} 7. d4 {[%emt 0:05:12]} cxd4 {[%emt 0:03:27]} 8. Nxd4 {[%emt 0:00:19]} Qc7 {[%emt 0:01:24]} 9. Qd3 {[%emt 0:07:15]} Nc6 {[%emt 0:05:38]} 10. Nxc6 {[%emt 0:00:19]} dxc6 {[%emt 0:07:25]} 11. e4 {[%emt 0:05:21]} e5 {[%emt 0:06:04]} 12. h3 {[%emt 0:03:28]} Be6 {[%emt 0:06:21]} 13. Be3 {[%emt 0:06:31]} Rad8 {[%emt 0:04:42]} 14. Qe2 {[%emt 0:00:12]} Nd7 {[%emt 0:00:04]} 15. Rfd1 {[%emt 0:09:16]} Qb8 {[%emt 0:07:04]} 16. Rac1 {[%emt 0:10:13]} f6 {[%emt 0:05:25]} 17. Na4 {[%emt 0:06:50]} b6 {[%emt 0:03:33]} 18. b3 {[%emt 0:03:01]} Nc5 {[%emt 0:02:29]} 19. Nb2 {[%emt 0:07:27]} a5 {[%emt 0:03:53]} 20. h4 {[%emt 0:01:43]} Bc8 {[%emt 0:02:38]} 21. h5 {[%emt 0:07:31]} Ne6 {[%emt 0:01:06]} 22. Bh3 {[%emt 0:00:57]} Ba3 {[%emt 0:05:36]} 23. h6 {[%emt 0:02:58]} g6 {[%emt 0:22:24]} 24. Rb1 {[%emt 0:03:02]} Bxb2 {[%emt 0:00:00]} 25. Rxb2 {[%emt 0:00:06]} Nc5 {[%emt 0:00:00]} 26. Bg2 {[%emt 0:00:50]} Ne6 {[%emt 0:00:00]} 27. c5 {[%emt 0:03:50]} bxc5 {[%emt 0:00:00]} 28. Rc1 {[%emt 0:01:33]} Qb4 {[%emt 0:01:12]} 29. Qc4 {[%emt 0:02:44]} Qxc4 {[%emt 0:01:01]} 30. Rxc4 {[%emt 0:00:05]} Ba6 {[%emt 0:00:26]} 31. Rc1 {[%emt 0:00:06]} c4 {[%emt 0:00:30]} 32. bxc4 {[%emt 0:00:04]} Rb8 {[%emt 0:00:04]} 33. Rd2 {[%emt 0:02:04]} Rfd8 {[%emt 0:00:23]} 34. Rxd8+ {[%emt 0:00:04]} Rxd8 {[%emt 0:00:46]} 35. Bf1 {[%emt 0:00:04]} c5 {[%emt 0:01:05]} 36. Rb1 {[%emt 0:00:09]} Rd6 {[%emt 0:00:12]} 37. Rb8+ {[%emt 0:00:18]} Kf7 {[%emt 0:00:50]} 38. Rh8 {[%emt 0:00:08]} f5 {[%emt 0:00:25]} 39. Rxh7+ {[%emt 0:01:53]} Kg8 {[%emt 0:00:10]} 40. Ra7 {[%emt 0:00:00]} fxe4 {[%emt 0:00:00]} 41. h7+ {[%emt 0:05:59]} Kh8 {[%emt 0:01:18]} 42. Bh6 {[%emt 0:00:06]} Rb6 {[%emt 0:08:58]} 43. Re7 {[%emt 0:01:52]} Nd4 {[%emt 0:02:03]} 44. Bg7+ {[%emt 0:00:15]} Kxh7 {[%emt 0:00:01]} 45. Bxe5+ {[%emt 0:00:05]} Kg8 {[%emt 0:05:08]} 46. Bxd4 {[%emt 0:00:38]} cxd4 {[%emt 0:00:04]} 47. Rxe4 {[%emt 0:00:04]} Rb4 {[%emt 0:01:06]} 48. Rxd4 {[%emt 0:00:25]} Kf7 {[%emt 0:01:05]} 49. Rd7+ {[%emt 0:00:54]} Ke6 {[%emt 0:00:29]} 50. Ra7 {[%emt 0:00:16]} Bxc4 {[%emt 0:00:06]} 51. Bxc4+ {[%emt 0:00:06]} Rxc4 {[%emt 0:00:03]} 52. Rxa5 {[%emt 0:00:04]} Rc2 {[%emt 0:00:36]} 53. Kg2 {[%emt 0:00:28]} Kf6 {[%emt 0:00:08]} 54. Kf3 {[%emt 0:00:10]} Rb2 {[%emt 0:00:56]} 55. Ke3 {[%emt 0:00:55]} g5 {[%emt 0:01:12]} 56. Kf3 {[%emt 0:01:48]} Rc2 {[%emt 0:00:15]} 57. a4 {[%emt 0:00:08]} Rc4 {[%emt 0:00:48]} 58. Ra6+ {[%emt 0:01:38]} Kf5 {[%emt 0:00:38]} 59. g4+ {[%emt 0:00:17]} Ke5 {[%emt 0:00:02]} 60. Kg3 {[%emt 0:00:35]} Rc5 {[%emt 0:00:59]} 61. a5 {[%emt 0:00:59]} Kd4 {[%emt 0:00:29]} 62. Rd6+ {[%emt 0:00:13]} Ke5 {[%emt 0:00:19]} 63. Rg6 {[%emt 0:00:08]} Ke4 {[%emt 0:00:04]} 64. f3+ {[%emt 0:00:28]} Ke3 {[%emt 0:00:05]} 65. a6 {[%emt 0:00:07]} Ra5 {[%emt 0:00:03]} 66. a7 {[%emt 0:00:16]} 1-0

[Event "Romanian Championship Open 2025"]
[Site "Craiova"]
[Date "2025.02.18"]
[Round "4.13"]
[White "Manea, Alexandru"]
[Black "Toma, Iustin"]
[Result "0-1"]
[Annotator "ChessBase"]
[ECO "A28"]
[WhiteElo "2272"]
[BlackElo "2118"]
[PlyCount "74"]
[EventDate "2025.02.12"]
[EventType "swiss"]
[EventCountry "ROU"]
[SourceTitle "playchess.com"]
[Source "ChessBase"]
[SourceQuality "1"]
[TimeControl "40/5400+30:900+30"]

1. e4 {[%emt 0:00:03]} e5 {[%emt 0:01:09]} 2. Nf3 {[%emt 0:00:20]} Nc6 {[%emt 0:00:06]} 3. c4 {[%emt 0:04:09]} Nf6 {[%emt 0:00:39]} 4. Nc3 {[%emt 0:00:18]} Bb4 {[%emt 0:08:45]} 5. d3 {[%emt 0:05:23]} O-O {[%emt 0:01:48]} 6. h3 {[%emt 0:01:19]} d6 {[%emt 0:03:49]} 7. Be2 {[%emt 0:07:17]} Ne7 {[%emt 0:11:52]} 8. O-O {[%emt 0:01:12]} Ng6 {[%emt 0:00:21]} 9. a3 {[%emt 0:05:41]} Bxc3 {[%emt 0:00:32]} 10. bxc3 {[%emt 0:00:03]} b6 {[%emt 0:07:36]} 11. Re1 {[%emt 0:01:10]} Nd7 {[%emt 0:05:23]} 12. d4 {[%emt 0:03:27]} Bb7 {[%emt 0:05:28]} 13. Bd3 {[%emt 0:00:20]} h6 {[%emt 0:01:55]} 14. Be3 {[%emt 0:04:33]} Re8 {[%emt 0:00:50]} 15. Nd2 {[%emt 0:00:07]} Qf6 {[%emt 0:08:24]} 16. Qg4 {[%emt 0:07:10]} Rad8 {[%emt 0:01:46]} 17. Rab1 {[%emt 0:09:11]} exd4 {[%emt 0:07:50]} 18. cxd4 {[%emt 0:00:49]} c5 {[%emt 0:00:05]} 19. d5 {[%emt 0:09:21]} Nde5 {[%emt 0:00:46]} 20. Qe2 {[%emt 0:00:59]} Bc8 {[%emt 0:02:50]} 21. Bc2 {[%emt 0:02:16]} Bd7 {[%emt 0:05:12]} 22. Qf1 {[%emt 0:11:08]} Nf4 {[%emt 0:01:16]} 23. Bxf4 {[%emt 0:00:45]} Qxf4 {[%emt 0:00:10]} 24. Re3 {[%emt 0:00:06]} h5 {[%emt 0:10:47]} 25. g3 {[%emt 0:07:27]} Qh6 {[%emt 0:03:53]} 26. f4 {[%emt 0:01:14]} Ng6 {[%emt 0:00:57]} 27. Rf3 {[%emt 0:13:04]} Re7 {[%emt 0:05:03]} 28. Rf2 {[%emt 0:01:33]} f6 {[%emt 0:01:46]} 29. Kh2 {[%emt 0:01:12]} Bc8 {[%emt 0:01:48]} 30. Rb3 {[%emt 0:00:45]} Bd7 {[%emt 0:00:31]} 31. Rb1 {[%emt 0:00:19]} Rde8 {[%emt 0:01:00]} 32. Qd3 {[%emt 0:00:50]} f5 {[%emt 0:00:57]} 33. Qf3 {[%emt 0:00:11]} fxe4 {[%emt 0:00:26]} 34. Nxe4 {[%emt 0:01:36]} Bf5 {[%emt 0:01:15]} 35. Qg2 {[%emt 0:02:08]} Bxe4 {[%emt 0:00:06]} 36. Bxe4 {[%emt 0:00:17]} Rxe4 {[%emt 0:00:06]} 37. h4 {[%emt 0:00:13]} Nf8 {[%emt 0:00:17]} 0-1

[Event "Romanian Championship Open 2025"]
[Site "Craiova"]
[Date "2025.02.18"]
[Round "4.14"]
[White "Sava, Robert-Gabriel"]
[Black "Botea, David-Alexandru"]
[Result "1-0"]
[Annotator "ChessBase"]
[ECO "D11"]
[WhiteElo "2183"]
[BlackElo "2127"]
[PlyCount "77"]
[EventDate "2025.02.12"]
[EventType "swiss"]
[EventCountry "ROU"]
[SourceTitle "playchess.com"]
[Source "ChessBase"]
[SourceQuality "1"]
[TimeControl "40/5400+30:900+30"]

1. d4 {[%emt 0:00:04]} d5 {[%emt 0:00:23]} 2. c4 {[%emt 0:00:42]} c6 {[%emt 0:00:06]} 3. Nf3 {[%emt 0:00:25]} Nf6 {[%emt 0:00:21]} 4. g3 {[%emt 0:00:30]} Bf5 {[%emt 0:00:32]} 5. Bg2 {[%emt 0:00:22]} h6 {[%emt 0:00:42]} 6. O-O {[%emt 0:00:21]} e6 {[%emt 0:00:36]} 7. b3 {[%emt 0:00:41]} Be7 {[%emt 0:02:23]} 8. Bb2 {[%emt 0:01:04]} Nbd7 {[%emt 0:01:12]} 9. Nbd2 {[%emt 0:00:42]} O-O {[%emt 0:00:54]} 10. e3 {[%emt 0:00:28]} Ne4 {[%emt 0:07:59]} 11. Nxe4 {[%emt 0:01:39]} Bxe4 {[%emt 0:00:29]} 12. Nd2 {[%emt 0:00:22]} Bxg2 {[%emt 0:01:48]} 13. Kxg2 {[%emt 0:00:38]} a5 {[%emt 0:06:50]} 14. a3 {[%emt 0:01:52]} a4 {[%emt 0:04:53]} 15. b4 {[%emt 0:01:17]} dxc4 {[%emt 0:01:56]} 16. Nxc4 {[%emt 0:00:43]} Nb6 {[%emt 0:01:36]} 17. Nd2 {[%emt 0:02:18]} Qd5+ {[%emt 0:01:30]} 18. e4 {[%emt 0:04:27]} Qb5 {[%emt 0:14:19]} 19. Qc2 {[%emt 0:01:11]} Rfd8 {[%emt 0:02:52]} 20. Rac1 {[%emt 0:01:01]} Bf6 {[%emt 0:06:13]} 21. Nf3 {[%emt 0:00:41]} Rd7 {[%emt 0:00:53]} 22. h4 {[%emt 0:00:36]} h5 {[%emt 0:06:49]} 23. Rg1 {[%emt 0:01:45]} Rad8 {[%emt 0:12:22]} 24. Kh3 {[%emt 0:00:33]} g6 {[%emt 0:19:20]} 25. Ba1 {[%emt 0:00:31]} Bg7 {[%emt 0:01:48]} 26. Rgd1 {[%emt 0:01:46]} Qa6 {[%emt 0:02:09]} 27. Kg2 {[%emt 0:00:29]} Nc8 {[%emt 0:00:18]} 28. Ne5 {[%emt 0:03:17]} Bxe5 {[%emt 0:00:18]} 29. dxe5 {[%emt 0:00:05]} Rd3 {[%emt 0:01:52]} 30. b5 {[%emt 0:00:52]} Qxb5 {[%emt 0:00:13]} 31. Rb1 {[%emt 0:00:30]} Qa6 {[%emt 0:01:28]} 32. Rxd3 {[%emt 0:00:14]} Rxd3 {[%emt 0:00:36]} 33. Rd1 {[%emt 0:00:36]} Rxd1 {[%emt 0:00:28]} 34. Qxd1 {[%emt 0:00:04]} Kg7 {[%emt 0:00:44]} 35. Qd8 {[%emt 0:00:13]} Nb6 {[%emt 0:00:35]} 36. Bd4 {[%emt 0:01:52]} Nc4 {[%emt 0:00:29]} 37. Bc5 {[%emt 0:00:22]} Nxe5 {[%emt 0:00:11]} 38. Bf8+ {[%emt 0:00:12]} Kh7 {[%emt 0:00:20]} 39. Qf6 {[%emt 0:00:11]} 1-0